fUST/lending_fUST_20240529
["ID","MTS","AMOUNT","RATE_DAILY","PERIOD"]
[328133118,1716922253567,-500.0,0.00021917,2]
[328133119,1716922253577,-531.82,0.00021917,2]
[328133120,1716922253587,-501.94694264,0.00021917,2]
[328133121,1716922253598,-406.71997752,0.00021917,2]
[328133122,1716922253607,-501.82600979,0.00021917,2]
[328133123,1716922253616,-500.0,0.00021917,2]
[328133124,1716922253625,-503.69494245,0.00021917,2]
[328133125,1716922253634,-500.0,0.00021917,2]
[328133126,1716922253643,-341.72955602,0.00021917,2]
[328133127,1716922253653,-500.0,0.00021917,2]
[328133128,1716922253662,-500.0,0.00021917,2]
[328133129,1716922253671,-500.0,0.00021917,2]
[328133130,1716922253687,-500.0,0.00021917,2]
[328133131,1716922253697,-500.0,0.00021917,2]
[328133132,1716922253707,-500.0009053,0.00021917,2]
[328133133,1716922253718,-513.13687737,0.00021917,2]
[328133134,1716922253728,-500.0,0.00021917,2]
[328133135,1716922253738,-500.0,0.00021917,2]
[328133136,1716922253749,-502.29033566,0.00021917,2]
[328133137,1716922253762,-500.0,0.00021917,2]
[328133138,1716922253771,-503.82471404,0.00021917,2]
[328133139,1716922253781,-504.5,0.00021917,2]
[328133140,1716922253790,-500.0,0.00021917,2]
[328133141,1716922253799,-502.55265726,0.00021917,2]
[328133142,1716922253809,-500.0,0.00021917,2]
[328133143,1716922253818,-500.0,0.00021917,2]
[328133144,1716922253827,-500.0,0.00021917,2]
[328133145,1716922253837,-1448.08,0.00021917,2]
[328133146,1716922253846,-500.0,0.00021917,2]
[328133147,1716922253856,-503.73165901,0.00021917,2]
[328133148,1716922253865,-500.0,0.00021917,2]
[328133149,1716922253874,-508.38651536,0.00021917,2]
[328133150,1716922253883,-505.07595482,0.00021917,2]
[328133151,1716922253892,-500.0,0.00021917,2]
[328133152,1716922253901,-504.7403084,0.00021917,2]
[328133153,1716922253910,-500.0,0.00021917,2]
[328133154,1716922253920,-500.0,0.00021917,2]
[328133155,1716922253930,-507.49434713,0.00021917,2]
[328133156,1716922253939,-500.0,0.00021917,2]
[328133157,1716922254072,-503.90806595,0.00021917,2]
[328133158,1716922254103,-300.30723161,0.00021917,2]
[328133159,1716922254114,-500.0,0.00021917,2]
[328133160,1716922254123,-500.0,0.00021917,2]
[328133161,1716922254132,-500.0,0.00021917,2]
[328133162,1716922254142,-510.68228528,0.00021917,2]
[328133163,1716922254151,-502.05645164,0.00021917,2]
[328133164,1716922254161,-500.0,0.00021917,2]
[328133165,1716922254170,-500.0,0.00021917,2]
[328133166,1716922254180,-2518.55,0.00021917,2]
[328133167,1716922254189,-509.11746867,0.00021917,2]
[328133168,1716922254198,-512.46,0.00021917,2]
[328133169,1716922254208,-501.59101574,0.00021917,2]
[328133170,1716922254217,-1503.9,0.00021917,2]
[328133171,1716922254227,-500.0,0.00021917,2]
[328133172,1716922254237,-505.6313629,0.00021917,2]
[328133173,1716922254248,-500.0,0.00021917,2]
[328133174,1716922254258,-500.0,0.00021917,2]
[328133175,1716922254268,-502.90194549,0.00021917,2]
[328133176,1716922254277,-860.53,0.00021917,2]
[328133177,1716922254286,-502.41934384,0.00021917,2]
[328133178,1716922254296,-500.0,0.00021917,2]
[328133179,1716922254305,-300.0,0.00021917,2]
[328133180,1716922254315,-500.0,0.00021917,2]
[328133181,1716922254325,-193.00716964,0.00021917,2]
[328133182,1716922254335,-500.0,0.00021917,2]
[328133183,1716922254345,-549.12,0.00021917,2]
[328133184,1716922254354,-500.0,0.00021917,2]
[328133185,1716922254364,-553.14,0.00021917,2]
[328133186,1716922254373,-196.48648434,0.00021917,2]
[328133187,1716922254382,-500.0,0.00021917,2]
[328133188,1716922254392,-500.0,0.00021917,2]
[328133189,1716922254401,-1892.74,0.00021917,2]
[328133190,1716922254410,-500.0,0.00021917,2]
[328133191,1716922254420,-648.16,0.00021917,2]
[328133192,1716922254430,-1800.0,0.00021917,4]
[328133193,1716922254439,-1800.0,0.00021917,4]
[328133194,1716922254448,-1800.0,0.00021917,4]
[328133195,1716922254457,-1800.0,0.00021917,4]
[328133196,1716922254467,-1800.0,0.00021917,4]
[328133197,1716922254477,-1800.0,0.00021917,4]
[328133198,1716922254486,-1800.0,0.00021917,4]
[328133199,1716922254495,-1800.0,0.00021917,4]
[328133200,1716922254505,-1800.0,0.00021917,4]
[328133201,1716922254514,-252.42373206,0.00021917,4]
[328133202,1716922254523,-500.0,0.00021917,2]
[328133203,1716922254533,-500.0,0.00021917,2]
[328133204,1716922254542,-5008.34,0.00021917,2]
[328133205,1716922254551,-500.0,0.00021917,2]
[328133206,1716922254560,-500.0,0.00021917,2]
[328133207,1716922254570,-522.71,0.00021917,2]
[328133208,1716922254579,-500.0,0.00021917,2]
[328133209,1716922254588,-2267.56,0.00021917,2]
[328133210,1716922254598,-500.0,0.00021917,2]
[328133211,1716922254607,-500.0,0.00021917,2]
[328133212,1716922254616,-500.0,0.00021917,2]
[328133213,1716922254625,-500.0,0.00021917,2]
[328133214,1716922254635,-500.0,0.00021917,2]
[328133215,1716922254644,-156.07424758,0.00021917,2]
[328133216,1716922254654,-500.0,0.00021917,2]
[328133217,1716922254663,-500.0,0.00021917,2]
[328133218,1716922254676,-987.13,0.00021917,2]
[328133219,1716922254690,-5610.1,0.00021917,2]
[328133220,1716922254700,-779.61732058,0.00021917,2]
[328133221,1716922254710,-500.0,0.00021917,2]
[328133222,1716922254721,-500.0,0.00021917,2]
[328133223,1716922254731,-500.0,0.00021917,2]
[328133224,1716922254741,-500.0,0.00021917,2]
[328133225,1716922254756,-1064.44,0.00021917,2]
[328133226,1716922254769,-500.0,0.00021917,2]
[328133227,1716922254780,-807.77,0.00021917,2]
[328133228,1716922254791,-500.0,0.00021917,2]
[328133229,1716922254800,-352.38979678,0.00021917,2]
[328133230,1716922254810,-1591.42,0.00021917,2]
[328133231,1716922254821,-500.0,0.00021917,2]
[328133232,1716922254831,-500.0,0.00021917,2]
[328133233,1716922254840,-837.66,0.00021917,2]
[328133234,1716922254850,-500.90358674,0.00021917,2]
[328133235,1716922254860,-500.0,0.00021917,2]
[328133236,1716922254870,-500.0,0.00021917,2]
[328133237,1716922254879,-8557.0,0.00021917,2]
[328133238,1716922254889,-502.78542225,0.00021917,2]
[328133239,1716922254899,-506.02014228,0.00021917,2]
[328133240,1716922254908,-501.00573019,0.00021917,2]
[328133241,1716922254918,-22041.83,0.00021917,2]
[328133242,1716922254929,-503.13937197,0.00021917,2]
[328133243,1716922254939,-500.80989131,0.00021917,2]
[328133244,1716922254948,-971.0,0.00021917,2]
[328133245,1716922254958,-2000.0,0.00021917,5]
[328133246,1716922254967,-7581.32,0.00021917,2]
[328133247,1716922254977,-500.0,0.00021917,2]
[328133248,1716922254986,-2067.71,0.00021917,2]
[328133249,1716922254997,-294.00285172,0.00021917,2]
[328133250,1716922255006,-500.0,0.00021917,2]
[328133251,1716922255016,-500.0,0.00021917,2]
[328133252,1716922255026,-500.0,0.00021917,2]
[328133253,1716922255035,-976.57,0.00021917,2]
[328133254,1716922255045,-577.68,0.00021917,2]
[328133255,1716922255054,-501.05925065,0.00021917,2]
[328133256,1716922255065,-539.4,0.00021917,2]
[328133257,1716922255074,-500.0,0.00021917,2]
[328133258,1716922255084,-500.0,0.00021917,2]
[328133259,1716922255093,-500.0,0.00021917,2]
[328133260,1716922255104,-2299.92,0.00021917,2]
[328133261,1716922255113,-500.0,0.00021917,2]
[328133262,1716922255124,-364.78031565,0.00021917,2]
[328133263,1716922255134,-500.0,0.00021917,2]
[328133264,1716922255143,-500.0,0.00021917,2]
[328133265,1716922255152,-396.30025962,0.00021917,2]
[328133266,1716922255162,-704.34,0.00021917,2]
[328133267,1716922255171,-1236.47,0.00021917,2]
[328133268,1716922255181,-1236.47,0.00021917,2]
[328133269,1716922255191,-1236.47,0.00021917,2]
[328133270,1716922255201,-1236.47,0.00021917,2]
[328133271,1716922255210,-1236.47,0.00021917,2]
[328133272,1716922255220,-1236.47,0.00021917,2]
[328133273,1716922255230,-1236.47,0.00021917,2]
[328133274,1716922255239,-1236.47,0.00021917,2]
[328133275,1716922255251,-1236.47,0.00021917,2]
[328133276,1716922255262,-1236.47,0.00021917,2]
[328133277,1716922255271,-502.15705602,0.00021917,2]
[328133278,1716922255281,-1236.47,0.00021917,2]
[328133279,1716922255290,-1236.47,0.00021917,2]
[328133280,1716922255300,-1236.47,0.00021917,2]
[328133281,1716922255310,-1236.47,0.00021917,2]
[328133282,1716922255319,-1236.47,0.00021917,2]
[328133283,1716922255329,-1236.47,0.00021917,2]
[328133284,1716922255339,-1236.47,0.00021917,2]
[328133285,1716922255348,-1236.47,0.00021917,2]
[328133286,1716922255358,-1236.47,0.00021917,2]
[328133287,1716922255369,-1236.47,0.00021917,2]
[328133288,1716922255378,-1236.47,0.00021917,2]
[328133289,1716922255388,-1236.47,0.00021917,2]
[328133290,1716922255398,-1236.47,0.00021917,2]
[328133291,1716922255408,-1236.65617511,0.00021917,2]
[328133292,1716922255418,-446.08264544,0.00021917,2]
[328133293,1716922255427,-500.0,0.00021917,2]
[328133294,1716922255436,-689.68,0.00021917,2]
[328133295,1716922255446,-500.0,0.00021917,2]
[328133296,1716922255455,-500.0,0.00021917,2]
[328133297,1716922255465,-500.0,0.00021917,2]
[328133298,1716922255475,-500.0,0.00021917,2]
[328133299,1716922255484,-591.81397438,0.00021917,2]
[328133300,1716922255493,-389.58849283,0.00021917,2]
[328133301,1716922255507,-515.72519563,0.00021917,2]
[328133302,1716922255516,-581.84,0.00021917,2]
[328133303,1716922255525,-500.0,0.00021917,2]
[328133304,1716922255535,-500.0,0.00021917,2]
[328133305,1716922255544,-581.84,0.00021917,2]
[328133306,1716922255553,-581.84,0.00021917,2]
[328133307,1716922255562,-581.84,0.00021917,2]
[328133308,1716922255572,-581.84,0.00021917,2]
[328133309,1716922255581,-581.84,0.00021917,2]
[328133310,1716922255591,-500.0,0.00021917,2]
[328133311,1716922255601,-581.84,0.00021917,2]
[328133312,1716922255611,-581.84,0.00021917,2]
[328133313,1716922255621,-500.0,0.00021917,2]
[328133314,1716922255630,-676.15,0.00021917,2]
[328133315,1716922255640,-581.84,0.00021917,2]
[328133316,1716922255650,-581.84,0.00021917,2]
[328133317,1716922255660,-581.84,0.00021917,2]
[328133318,1716922255670,-581.84,0.00021917,2]
[328133319,1716922255682,-581.84,0.00021917,2]
[328133320,1716922255693,-581.84,0.00021917,2]
[328133321,1716922255703,-581.84,0.00021917,2]
[328133322,1716922255712,-581.84,0.00021917,2]
[328133323,1716922255724,-581.84,0.00021917,2]
[328133324,1716922255734,-581.84,0.00021917,2]
[328133325,1716922255744,-581.84,0.00021917,2]
[328133326,1716922255758,-581.84,0.00021917,2]
[328133327,1716922255770,-581.84,0.00021917,2]
[328133328,1716922255780,-581.84,0.00021917,2]
[328133329,1716922255790,-500.0,0.00021917,2]
[328133330,1716922255800,-581.84,0.00021917,2]
[328133331,1716922255810,-582.04291628,0.00021917,2]
[328133332,1716922255820,-529.65,0.00021917,2]
[328133333,1716922255830,-500.0,0.00021917,2]
[328133334,1716922255840,-500.0,0.00021917,2]
[328133335,1716922255849,-556.28,0.00021917,2]
[328133336,1716922255859,-153.0,0.00021918,2]
[328133337,1716922255869,-153.0,0.00021918,2]
[328133338,1716922255878,-204.7749955,0.00021918,2]
[328133339,1716922255887,-412.0042247,0.00021918,2]
[328133340,1716922255897,-166.666666,0.00021918,2]
[328133341,1716922255906,-10000.0,0.00021918,2]
[328133342,1716922255915,-578.8113,0.00021918,2]
[328133343,1716922255925,-578.8113,0.00021918,2]
[328133344,1716922255934,-578.8113,0.00021918,2]
[328133345,1716922255943,-578.8113,0.00021918,2]
[328133346,1716922255953,-578.8113,0.00021918,2]
[328133347,1716922255962,-578.8113,0.00021918,2]
[328133348,1716922255972,-578.8113,0.00021918,2]
[328133349,1716922255981,-578.8113,0.00021918,2]
[328133350,1716922255991,-578.8113,0.00021918,2]
[328133351,1716922256001,-578.8113,0.00021918,2]
[328133352,1716922256011,-578.8113,0.00021918,2]
[328133353,1716922256020,-578.8113,0.00021918,2]
[328133354,1716922256030,-578.8113,0.00021918,2]
[328133355,1716922256040,-578.8113,0.00021918,2]
[328133356,1716922256049,-578.8113,0.00021918,2]
[328133357,1716922256058,-578.8113,0.00021918,2]
[328133358,1716922256068,-578.8113,0.00021918,2]
[328133359,1716922256077,-578.8113,0.00021918,2]
[328133360,1716922256087,-578.8113,0.00021918,2]
[328133361,1716922256096,-578.811294,0.00021918,2]
[328133362,1716922256106,-151.0,0.00021918,2]
[328133364,1716922256115,-151.0,0.00021918,2]
[328133365,1716922256124,-151.679847,0.00021918,2]
[328133366,1716922256134,-1000.0,0.00022,2]
[328133367,1716922256143,-600.0,0.00022092,2]
[328133368,1716922256153,-500.0,0.00022191,2]
[328133369,1716922256163,-419.68549306,0.00022191,2]
[328133370,1716922256173,-500.0,0.00022191,2]
[328133371,1716922256183,-500.0,0.00022191,2]
[328133372,1716922256192,-500.0,0.00022191,2]
[328133373,1716922256202,-500.0,0.00022191,2]
[328133374,1716922256211,-500.0,0.00022191,2]
[328133375,1716922256222,-500.0,0.00022191,2]
[328133376,1716922256231,-500.0,0.00022191,2]
[328133377,1716922256241,-500.0,0.00022191,2]
[328133378,1716922256252,-500.0,0.00022191,2]
[328133379,1716922256261,-500.0,0.00022191,2]
[328133380,1716922256270,-500.19,0.00022191,2]
[328133381,1716922256280,-241.53026852,0.00022191,2]
[328133382,1716922256290,-500.0,0.00022191,3]
[328133383,1716922256299,-500.0,0.00022191,2]
[328133384,1716922256309,-500.0,0.00022191,2]
[328133385,1716922256318,-500.0,0.00022191,2]
[328133386,1716922256327,-500.0,0.00022191,2]
[328133387,1716922256337,-500.0,0.00022191,2]
[328133388,1716922256346,-500.0,0.00022191,2]
[328133389,1716922256356,-500.0,0.00022191,2]
[328133390,1716922256365,-500.0,0.00022191,2]
[328133391,1716922256374,-500.0,0.00022191,2]
[328133392,1716922256420,-500.0,0.00022191,2]
[328133393,1716922256429,-500.0,0.00022191,2]
[328133394,1716922256439,-500.0,0.00022191,2]
[328133395,1716922256448,-500.0,0.00022191,2]
[328133396,1716922256457,-503.36903283,0.00022191,2]
[328133397,1716922256466,-500.0,0.00022191,2]
[328133398,1716922256475,-500.0,0.00022191,2]
[328133399,1716922256484,-500.0,0.00022191,2]
[328133400,1716922256493,-500.0,0.00022191,2]
[328133401,1716922256504,-500.0,0.00022191,2]
[328133402,1716922256513,-500.0,0.00022191,2]
[328133403,1716922256523,-500.0,0.00022191,2]
[328133404,1716922256533,-154.17039348,0.00022191,2]
[328133405,1716922256542,-500.0,0.00022191,2]
[328133406,1716922256551,-500.0,0.00022191,2]
[328133407,1716922256562,-500.0,0.00022191,2]
[328133408,1716922256573,-500.0,0.00022191,2]
[328133409,1716922256583,-500.0,0.00022191,2]
[328133410,1716922256593,-501.16797346,0.00022191,2]
[328133411,1716922256604,-503.82066094,0.00022191,2]
[328133412,1716922256615,-500.0,0.00022191,2]
[328133413,1716922256624,-335.57795483,0.00022191,2]
[328133414,1716922256634,-500.0,0.00022191,2]
[328133415,1716922256644,-500.0,0.00022191,2]
[328133416,1716922256653,-502.96588132,0.00022191,2]
[328133417,1716922256662,-500.0,0.00022191,2]
[328133418,1716922256671,-500.0,0.00022191,2]
[328133419,1716922256684,-404.22160318,0.00022191,2]
[328133420,1716922256693,-1072.71,0.00022191,2]
[328133421,1716922256703,-1074.16,0.00022191,2]
[328133422,1716922256712,-500.0,0.00022191,2]
[328133423,1716922256723,-501.54128267,0.00022191,2]
[328133424,1716922256732,-723.61,0.00022191,2]
[328133425,1716922256741,-545.7666295,0.00022191,2]
[328133426,1716922256752,-500.0,0.00022191,2]
[328133427,1716922256764,-507.87457586,0.00022191,2]
[328133428,1716922256772,-500.0,0.00022191,2]
[328133429,1716922256781,-502.04409908,0.00022191,2]
[328133430,1716922256790,-1502.11,0.00022191,2]
[328133431,1716922256799,-500.0,0.00022191,2]
[328133432,1716922256808,-500.0,0.00022191,2]
[328133433,1716922256818,-518.84,0.00022191,2]
[328133434,1716922256827,-502.34470421,0.00022191,2]
[328133435,1716922256837,-500.0,0.00022191,2]
[328133436,1716922256846,-1488.2,0.00022191,2]
[328133437,1716922256856,-500.0,0.00022191,2]
[328133438,1716922256866,-500.0,0.00022191,2]
[328133439,1716922256875,-502.35558231,0.00022191,2]
[328133440,1716922256884,-500.0,0.00022191,2]
[328133441,1716922256893,-500.0,0.00022191,2]
[328133442,1716922256903,-189.07247636,0.00022191,2]
[328133443,1716922256912,-500.0,0.00022191,2]
[328133444,1716922256922,-500.0,0.00022191,2]
[328133445,1716922256931,-505.53690187,0.00022191,2]
[328133446,1716922256941,-502.14996689,0.00022191,2]
[328133447,1716922256950,-287.74516453,0.00022191,2]
[328133448,1716922256960,-608.52,0.00022191,2]
[328133449,1716922256969,-500.0,0.00022191,2]
[328133450,1716922256979,-500.0,0.00022191,2]
[328133451,1716922256988,-726.86,0.00022191,2]
[328133452,1716922256999,-500.0,0.00022191,2]
[328133453,1716922257008,-500.0,0.00022191,2]
[328133454,1716922257017,-503.67666104,0.00022191,2]
[328133455,1716922257026,-1207.53,0.00022191,2]
[328133456,1716922257035,-629.35,0.00022191,2]
[328133457,1716922257044,-500.0,0.00022191,2]
[328133458,1716922257053,-502.26347139,0.00022191,2]
[328133459,1716922257063,-473.27271237,0.00022191,2]
[328133460,1716922257072,-507.95,0.00022191,2]
[328133461,1716922257081,-241.80382151,0.00022191,2]
[328133462,1716922257090,-500.0,0.00022191,2]
[328133463,1716922257099,-580.31846795,0.00022191,2]
[328133464,1716922257108,-500.0,0.00022191,2]
[328133465,1716922257117,-786.75,0.00022191,2]
[328133466,1716922257126,-1198.22,0.00022191,2]
[328133467,1716922257135,-1418.15,0.00022191,2]
[328133468,1716922257144,-1102.98,0.00022191,2]
[328133469,1716922257154,-500.0,0.00022191,2]
[328133470,1716922257164,-500.0,0.00022191,2]
[328133471,1716922257173,-472.04340729,0.00022191,2]
[328133472,1716922257182,-697.8,0.00022191,2]
[328133473,1716922257193,-601.88882351,0.00022191,2]
[328133474,1716922257202,-500.0,0.00022191,2]
[328133475,1716922257211,-570.66,0.00022191,2]
[328133476,1716922257221,-841.13,0.00022191,2]
[328133477,1716922257231,-500.0,0.00022191,2]
[328133478,1716922257240,-500.0,0.00022191,2]
[328133479,1716922257251,-500.0,0.00022191,2]
[328133480,1716922257260,-593.32,0.00022191,2]
[328133481,1716922257269,-500.0,0.00022191,2]
[328133482,1716922257278,-539.68,0.00022191,2]
[328133483,1716922257288,-500.0,0.00022191,2]
[328133484,1716922257297,-1754.1,0.00022191,2]
[328133485,1716922257307,-500.0,0.00022191,2]
[328133486,1716922257316,-500.0,0.00022191,2]
[328133487,1716922257326,-247.50229172,0.00022191,2]
[328133488,1716922257335,-500.0,0.00022191,2]
[328133489,1716922257344,-503.35414509,0.00022191,2]
[328133490,1716922257354,-500.0,0.00022191,2]
[328133491,1716922257363,-500.0,0.00022191,2]
[328133492,1716922257372,-542.79335126,0.00022191,2]
[328133493,1716922257381,-504.48292336,0.00022191,2]
[328133494,1716922257390,-500.0,0.00022191,2]
[328133495,1716922257398,-500.0,0.00022191,2]
[328133496,1716922257407,-500.0,0.00022191,2]
[328133497,1716922257416,-500.0,0.00022191,2]
[328133498,1716922257426,-500.0,0.00022191,2]
[328133499,1716922257435,-500.0,0.00022191,2]
[328133500,1716922257445,-500.0,0.00022191,2]
[328133501,1716922257454,-520.91436597,0.00022191,2]
[328133502,1716922257464,-500.0,0.00022191,2]
[328133503,1716922257473,-1448.08,0.00022191,2]
[328133504,1716922257482,-500.0,0.00022191,2]
[328133505,1716922257492,-500.0,0.00022191,2]
[328133506,1716922257502,-500.0,0.00022191,2]
[328133507,1716922257511,-500.0,0.00022191,2]
[328133508,1716922257521,-500.0,0.00022191,2]
[328133509,1716922257531,-511.16867268,0.00022191,2]
[328133510,1716922257540,-500.0,0.00022191,2]
[328133511,1716922257549,-500.0,0.00022191,2]
[328133512,1716922257559,-500.0,0.00022191,2]
[328133513,1716922257568,-500.0,0.00022191,2]
[328133514,1716922257578,-2518.55,0.00022191,2]
[328133515,1716922257587,-512.46,0.00022191,2]
[328133516,1716922257596,-1503.9,0.00022191,2]
[328133517,1716922257605,-500.0,0.00022191,2]
[328133518,1716922257615,-500.0,0.00022191,2]
[328133519,1716922257625,-500.0,0.00022191,2]
[328133520,1716922257635,-860.53,0.00022191,2]
[328133521,1716922257645,-300.0,0.00022191,2]
[328133522,1716922257654,-500.0,0.00022191,2]
[328133523,1716922257663,-549.12,0.00022191,2]
[328133524,1716922257672,-553.14,0.00022191,2]
[328133525,1716922257685,-500.0,0.00022191,2]
[328133526,1716922257695,-1892.74,0.00022191,2]
[328133527,1716922257704,-500.0,0.00022191,2]
[328133528,1716922257714,-648.16,0.00022191,2]
[328133529,1716922257726,-500.0,0.00022191,2]
[328133530,1716922257735,-5008.34,0.00022191,2]
[328133531,1716922257745,-500.0,0.00022191,2]
[328133532,1716922257756,-522.71,0.00022191,2]
[328133533,1716922257768,-2267.56,0.00022191,2]
[328133534,1716922257779,-500.0,0.00022191,2]
[328133535,1716922257788,-500.0,0.00022191,2]
[328133536,1716922257798,-987.13,0.00022191,2]
[328133537,1716922257808,-5610.1,0.00022191,2]
[328133538,1716922257817,-246.8934112,0.00022191,2]
[328133539,1716922257827,-500.0,0.00022191,2]
[328133540,1716922257837,-1064.44,0.00022191,2]
[328133541,1716922257846,-500.0,0.00022191,2]
[328133542,1716922257856,-807.77,0.00022191,2]
[328133543,1716922257866,-500.0,0.00022191,2]
[328133544,1716922257876,-1591.42,0.00022191,2]
[328133545,1716922257885,-500.0,0.00022191,2]
[328133546,1716922257895,-500.0,0.00022191,2]
[328133547,1716922257905,-837.66,0.00022191,2]
[328133548,1716922257915,-500.0,0.00022191,2]
[328133549,1716922257925,-500.0,0.00022191,2]
[328133550,1716922257935,-8557.0,0.00022191,2]
[328133551,1716922257945,-22041.83,0.00022191,2]
[328133552,1716922257955,-971.0,0.00022191,2]
[328133553,1716922257965,-2000.0,0.00022191,5]
[328133554,1716922257975,-7581.32,0.00022191,2]
[328133555,1716922257984,-500.0,0.00022191,2]
[328133556,1716922257994,-1488.53782951,0.00022191,2]
[328133557,1716922258737,189.69416459,0.00015682,2]
[328133558,1716922258760,151.0,0.00015682,2]
[328133559,1716922258783,174.375222,0.00015682,2]
[328133560,1716922258806,256.57967435,0.00015682,2]
[328133575,1716923225388,-154.93802479,0.00015682,2]
[328133576,1716923225410,-366.0817298,0.00015682,2]
[328133577,1716923225431,-180.63994225,0.00016777,2]
[328133578,1716923230467,-412.93893029,0.00016777,2]
[328133579,1716923237105,-361.71259017,0.00016777,2]
[328133580,1716923239110,-1648.33074395,0.00016777,2]
[328133581,1716923297886,527.93079161,0.0001323,2]
[328133582,1716923346098,-7918.27520078,0.00016777,2]
[328133583,1716923346118,-4224.3955334,0.00016778,2]
[328133584,1716923346140,-24900.0,0.00017642,2]
[328133585,1716923346161,-485.67363058,0.00017648,2]
[328133586,1716923346181,-3000.0,0.00017748,2]
[328133587,1716923346204,-166.7920133,0.00017875,2]
[328133588,1716923346225,-1192.284082,0.00017975,2]
[328133589,1716923347044,272.09717453,0.00016833,2]
[328133590,1716923360123,-1290.71440037,0.00016833,2]
[328133606,1716923432576,-286.04727348,0.000189,2]
[328133608,1716923432586,-30.18748353,0.000189,2]
[328133674,1716923439848,-1473.73431922,0.000189,2]
[328133676,1716923439857,-166.102937,0.00019178,2]
[328133678,1716923439867,-166.7920133,0.00019189,2]
[328133680,1716923439876,-1170.82156658,0.00019888,2]
[328133682,1716923439886,-157.40785376,0.00019888,2]
[328133683,1716923439895,-2276.45232108,0.00019888,2]
[328133685,1716923439905,-896.50695997,0.00019888,2]
[328133687,1716923439914,-2053.19903549,0.00019888,2]
[328133689,1716923439924,-523.01612629,0.00019888,2]
[328133692,1716923439933,-1152.36513841,0.00019888,2]
[328133694,1716923439942,-157.37250312,0.00019888,2]
[328133696,1716923439953,-230.68622516,0.00019888,2]
[328133698,1716923439962,-2404.21274999,0.00019889,2]
[328133700,1716923439972,-1362.4666193,0.00019889,2]
[328133701,1716923439981,-1352.23991412,0.0002,2]
[328133703,1716923439990,-166.7920133,0.00020503,2]
[328133705,1716923440000,-153.0,0.00020548,2]
[328133707,1716923440009,-4044.2864434,0.00020912,2]
[328133709,1716923440018,-281.85841065,0.00020912,2]
[328133710,1716923440027,-3155.42771483,0.00020912,2]
[328133712,1716923440041,-1144.17653548,0.00021,2]
[328133713,1716923440053,-280.0,0.00021,2]
[328133714,1716923440063,-153.0,0.00021178,2]
[328133715,1716923440073,-727.44365792,0.00021201,2]
[328133716,1716923440084,-153.0,0.0002137,2]
[328133717,1716923440093,-153.0,0.0002137,2]
[328133718,1716923440103,-153.0,0.0002137,2]
[328133719,1716923440112,-153.0,0.0002137,2]
[328133720,1716923440123,-485.67363051,0.00021541,2]
[328133721,1716923440134,-166.7920133,0.00021817,2]
[328133722,1716923440144,-647.97,0.0002188,3]
[328133723,1716923440153,-215.98,0.0002189,3]
[328133724,1716923440163,-151.0,0.000219,2]
[328133725,1716923440173,-512.40165012,0.000219,4]
[328133726,1716923440182,-239.81026457,0.00021916,2]
[328133727,1716923440191,-270.44217005,0.00021916,2]
[328133728,1716923440201,-500.0,0.00021916,2]
[328133729,1716923440210,-617.98427198,0.00021916,2]
[328133730,1716923440220,-500.0,0.00021917,2]
[328133731,1716923440229,-500.0,0.00021917,2]